[Event "Early-Titled-Tuesday-Blitz-May-14-2024"]
[Site "Chess.com"]
[Date "2024.05.14"]
[Round "2"]
[White "Zurability"]
[Black "AlexandraSamaganova"]
[Result "1-0"]
[WhiteElo "2807"]
[BlackElo "2412"]
[TimeControl "180+1"]
[EndTime "8:18:59 PDT"]
[Termination "Zurability won by resignation"]

1. e4 {[%clk 0:02:10.2]} 1... e6 {[%clk 0:02:57.4]} 2. d4 {[%clk 0:02:05.7]}
2... d5 {[%clk 0:02:57.2]} 3. Nd2 {[%clk 0:02:06.6]} 3... c5 {[%clk 0:02:54.8]}
4. Ngf3 {[%clk 0:02:00.4]} 4... Nc6 {[%clk 0:02:53.9]} 5. Bb5 {[%clk 0:01:54.6]}
5... cxd4 {[%clk 0:02:46.3]} 6. Nxd4 {[%clk 0:01:55]} 6... Bd7 {[%clk
0:02:42.9]} 7. Nxc6 {[%clk 0:01:54.6]} 7... Bxc6 {[%clk 0:02:39.5]} 8. Bxc6+
{[%clk 0:01:52.1]} 8... bxc6 {[%clk 0:02:40.4]} 9. O-O {[%clk 0:01:52.5]} 9...
Nf6 {[%clk 0:02:37.1]} 10. Qe2 {[%clk 0:01:44.8]} 10... Be7 {[%clk 0:02:35.9]}
11. b3 {[%clk 0:01:41.2]} 11... O-O {[%clk 0:02:28.7]} 12. Bb2 {[%clk
0:01:41.6]} 12... a5 {[%clk 0:02:26.4]} 13. a4 {[%clk 0:01:40.3]} 13... c5
{[%clk 0:02:16]} 14. Rad1 {[%clk 0:01:30.6]} 14... Qb6 {[%clk 0:02:01.2]} 15.
exd5 {[%clk 0:01:27.9]} 15... Nxd5 {[%clk 0:01:58.9]} 16. Nc4 {[%clk 0:01:25.6]}
16... Qb7 {[%clk 0:01:55]} 17. Qf3 {[%clk 0:01:11.5]} 17... Rfd8 {[%clk
0:01:53]} 18. Rd3 {[%clk 0:01:02.8]} 18... Qc7 {[%clk 0:01:46.1]} 19. Be5 {[%clk
0:01:01.8]} 19... Qc6 {[%clk 0:01:40.1]} 20. Rfd1 {[%clk 0:00:59.9]} 20... Nb4
{[%clk 0:01:24.8]} 21. Qxc6 {[%clk 0:00:49.2]} 21... Nxc6 {[%clk 0:01:24.7]} 22.
Bc7 {[%clk 0:00:42.9]} 22... Rxd3 {[%clk 0:01:19]} 23. Rxd3 {[%clk 0:00:43.8]}
23... Nb4 {[%clk 0:01:08.8]} 24. Rd7 {[%clk 0:00:40.5]} 24... Kf8 {[%clk
0:01:01.3]} 25. Bxa5 {[%clk 0:00:38.6]} 25... Nxc2 {[%clk 0:01:00.2]} 26. Bc3
{[%clk 0:00:35.8]} 26... Rb8 {[%clk 0:00:55.4]} 27. Nd2 {[%clk 0:00:17.4]} 27...
Bg5 {[%clk 0:00:44.8]} 28. Kf1 {[%clk 0:00:10.5]} 28... Bxd2 {[%clk 0:00:39.9]}
29. Rxd2 {[%clk 0:00:09.7]} 29... Nd4 {[%clk 0:00:34.6]} 30. b4 {[%clk
0:00:06.9]} 30... Nb3 {[%clk 0:00:23.6]} 31. Rb2 {[%clk 0:00:06.2]} 31... c4
{[%clk 0:00:22.9]} 32. a5 {[%clk 0:00:03]} 32... f6 {[%clk 0:00:22.6]} 33. Ra2
{[%clk 0:00:03.3]} 33... Nc1 {[%clk 0:00:20.5]} 34. Ra1 {[%clk 0:00:03.1]} 34...
Nd3 {[%clk 0:00:21]} 35. a6 {[%clk 0:00:03.2]} 35... Ke7 {[%clk 0:00:21]} 36. a7
{[%clk 0:00:03.5]} 36... Ra8 {[%clk 0:00:21.4]} 37. b5 {[%clk 0:00:03.5]} 37...
Kd7 {[%clk 0:00:20.6]} 38. b6 {[%clk 0:00:03.5]} 38... Kc6 {[%clk 0:00:19.7]}
39. Bd4 {[%clk 0:00:03.9]} 39... e5 {[%clk 0:00:18.9]} 40. Be3 {[%clk
0:00:04.4]} 40... Kb7 {[%clk 0:00:11.3]} 41. Ke2 {[%clk 0:00:03.7]} 41... Nb4
{[%clk 0:00:09.1]} 42. Ra4 {[%clk 0:00:03.4]} 42... Nd5 {[%clk 0:00:06.4]} 43.
Bc5 {[%clk 0:00:02.5]} 43... c3 {[%clk 0:00:05.6]} 44. Rc4 {[%clk 0:00:02.7]}
44... Rc8 {[%clk 0:00:04.8]} 45. Kd3 {[%clk 0:00:02.8]} 45... Nxb6 {[%clk
0:00:02.8]} 46. Bxb6 {[%clk 0:00:03.1]} 46... Rxc4 {[%clk 0:00:03]} 47. Kxc4
{[%clk 0:00:03.8]} 47... c2 {[%clk 0:00:03.6]} 48. Be3 {[%clk 0:00:04.5]} 48...
f5 {[%clk 0:00:02.5]} 49. Kd3 {[%clk 0:00:04.5]} 49... f4 {[%clk 0:00:03]} 50.
Bc1 {[%clk 0:00:04.9]} 50... e4+ {[%clk 0:00:03.1]} 51. Kxe4 {[%clk 0:00:05.2]}
51... Kxa7 {[%clk 0:00:04]} 52. Kd3 {[%clk 0:00:05.9]} 52... Kb7 {[%clk
0:00:04.6]} 53. Kxc2 {[%clk 0:00:06.4]} 53... Kc6 {[%clk 0:00:05.5]} 54. Bxf4
{[%clk 0:00:07.1]} 54... Kd7 {[%clk 0:00:06.1]} 55. Kd3 {[%clk 0:00:07.7]} 55...
Ke6 {[%clk 0:00:06.7]} 56. Ke4 {[%clk 0:00:08.4]} 56... Kf7 {[%clk 0:00:07.3]}
57. Be3 {[%clk 0:00:09.1]} 57... g6 {[%clk 0:00:07.6]} 58. f4 {[%clk 0:00:09.8]}
1-0

[Event "Early-Titled-Tuesday-Blitz-May-14-2024"]
[Site "Chess.com"]
[Date "2024.05.14"]
[Round "2"]
[White "C_K_G"]
[Black "Aryan_Tamadon"]
[Result "0-1"]
[WhiteElo "2273"]
[BlackElo "2526"]
[TimeControl "180+1"]
[EndTime "8:19:03 PDT"]
[Termination "Aryan_Tamadon won on time"]

1. e4 {[%clk 0:02:56.2]} 1... d5 {[%clk 0:02:59.8]} 2. exd5 {[%clk 0:02:55.2]}
2... Qxd5 {[%clk 0:03:00.7]} 3. Nc3 {[%clk 0:02:54.4]} 3... Qd6 {[%clk
0:03:00.8]} 4. d4 {[%clk 0:02:54.4]} 4... Nf6 {[%clk 0:03:01.4]} 5. h3 {[%clk
0:02:53.5]} 5... Nc6 {[%clk 0:03:01.6]} 6. Nf3 {[%clk 0:02:52.7]} 6... Bf5
{[%clk 0:03:01.9]} 7. Bc4 {[%clk 0:02:51.7]} 7... O-O-O {[%clk 0:03:01.2]} 8.
O-O {[%clk 0:02:50.9]} 8... e6 {[%clk 0:02:55.9]} 9. Be3 {[%clk 0:02:39]} 9...
h6 {[%clk 0:02:51.3]} 10. a3 {[%clk 0:02:28.1]} 10... Na5 {[%clk 0:02:35.8]} 11.
Ba2 {[%clk 0:02:24.8]} 11... Nd5 {[%clk 0:01:26.8]} 12. Nb5 {[%clk 0:02:19.7]}
12... Qa6 {[%clk 0:01:21.8]} 13. c4 {[%clk 0:02:14.5]} 13... Nxe3 {[%clk
0:01:09]} 14. fxe3 {[%clk 0:02:15.4]} 14... c6 {[%clk 0:01:08.1]} 15. Rc1 {[%clk
0:02:15.1]} 15... Kb8 {[%clk 0:00:58.5]} 16. b4 {[%clk 0:01:45.3]} 16... cxb5
{[%clk 0:00:50.9]} 17. cxb5 {[%clk 0:01:42.2]} 17... Qxb5 {[%clk 0:00:44.1]} 18.
bxa5 {[%clk 0:01:41.6]} 18... Bxa3 {[%clk 0:00:44.5]} 19. Rc3 {[%clk 0:01:28]}
19... Qb2 {[%clk 0:00:41.5]} 20. Qb3 {[%clk 0:01:12]} 20... Rc8 {[%clk
0:00:31.2]} 21. Qxb2 {[%clk 0:00:44.1]} 21... Bxb2 {[%clk 0:00:31]} 22. Rb3
{[%clk 0:00:44.7]} 22... Bc3 {[%clk 0:00:19.8]} 23. Ne5 {[%clk 0:00:43.8]} 23...
Bxa5 {[%clk 0:00:14.9]} 24. Nxf7 {[%clk 0:00:34.3]} 24... Rhg8 {[%clk
0:00:04.6]} 25. Nd6 {[%clk 0:00:33.7]} 25... Rc2 {[%clk 0:00:05.1]} 26. Rxb7+
{[%clk 0:00:30.6]} 26... Ka8 {[%clk 0:00:05.7]} 27. Bb3 {[%clk 0:00:22.2]} 27...
Rc6 {[%clk 0:00:05.8]} 28. Rb5 {[%clk 0:00:16.3]} 28... Rxd6 {[%clk 0:00:03.6]}
29. Rxa5 {[%clk 0:00:16.9]} 29... Rb8 {[%clk 0:00:04.3]} 30. Bc4 {[%clk
0:00:16.5]} 30... Rb4 {[%clk 0:00:04.6]} 31. Be2 {[%clk 0:00:16.2]} 31... Rb3
{[%clk 0:00:04.5]} 32. Rf3 {[%clk 0:00:14.4]} 32... Kb7 {[%clk 0:00:03.8]} 33.
Rg3 {[%clk 0:00:14.5]} 33... g5 {[%clk 0:00:04.1]} 34. Bf3+ {[%clk 0:00:14.5]}
34... Kb6 {[%clk 0:00:04.2]} 35. Ra1 {[%clk 0:00:13.2]} 35... Rb1+ {[%clk
0:00:04.8]} 36. Rxb1+ {[%clk 0:00:12.1]} 36... Bxb1 {[%clk 0:00:05.7]} 37. h4
{[%clk 0:00:12.4]} 37... gxh4 {[%clk 0:00:05.1]} 38. Rh3 {[%clk 0:00:12.8]}
38... a5 {[%clk 0:00:05.7]} 39. Rxh4 {[%clk 0:00:13.2]} 39... a4 {[%clk
0:00:06.4]} 40. Rxh6 {[%clk 0:00:13.5]} 40... a3 {[%clk 0:00:07.1]} 41. Rh8
{[%clk 0:00:11.3]} 41... Ka5 {[%clk 0:00:07.6]} 42. Ra8+ {[%clk 0:00:10.8]}
42... Ra6 {[%clk 0:00:08]} 43. Rxa6+ {[%clk 0:00:07.8]} 43... Kxa6 {[%clk
0:00:08.9]} 44. d5 {[%clk 0:00:06.6]} 44... a2 {[%clk 0:00:08.8]} 45. dxe6
{[%clk 0:00:03.2]} 45... a1=Q {[%clk 0:00:09.7]} 46. e7 {[%clk 0:00:04.1]} 46...
Bg6+ {[%clk 0:00:07.4]} 0-1

[Event "Early-Titled-Tuesday-Blitz-May-14-2024"]
[Site "Chess.com"]
[Date "2024.05.14"]
[Round "2"]
[White "Mikhail_Bryakin"]
[Black "Sadykov_Ramil"]
[Result "1/2-1/2"]
[WhiteElo "2885"]
[BlackElo "2612"]
[TimeControl "180+1"]
[EndTime "8:19:05 PDT"]
[Termination "Game drawn - insufficient material"]

1. Nf3 {[%clk 0:02:50.8]} 1... Nf6 {[%clk 0:02:59]} 2. c4 {[%clk 0:02:45.7]}
2... e6 {[%clk 0:02:59]} 3. g3 {[%clk 0:02:45.5]} 3... d5 {[%clk 0:02:58.8]} 4.
Bg2 {[%clk 0:02:45.9]} 4... Be7 {[%clk 0:02:55.9]} 5. O-O {[%clk 0:02:45.5]}
5... O-O {[%clk 0:02:56.5]} 6. d3 {[%clk 0:02:43.6]} 6... c5 {[%clk 0:02:53.6]}
7. cxd5 {[%clk 0:02:43.1]} 7... Nxd5 {[%clk 0:02:53.7]} 8. Nc3 {[%clk
0:02:41.3]} 8... Nc6 {[%clk 0:02:27.4]} 9. Bd2 {[%clk 0:02:41]} 9... Nc7 {[%clk
0:02:09.7]} 10. Rc1 {[%clk 0:02:40.1]} 10... b6 {[%clk 0:02:05.5]} 11. a3 {[%clk
0:02:31.6]} 11... a5 {[%clk 0:02:01.9]} 12. Qa4 {[%clk 0:02:31.5]} 12... Bd7
{[%clk 0:01:59.5]} 13. Qf4 {[%clk 0:02:25.5]} 13... Bf6 {[%clk 0:01:38.5]} 14.
h4 {[%clk 0:02:21.3]} 14... e5 {[%clk 0:01:37.1]} 15. Qe4 {[%clk 0:02:21.6]}
15... Rb8 {[%clk 0:01:15.8]} 16. Bg5 {[%clk 0:02:21.4]} 16... Re8 {[%clk
0:01:10.8]} 17. Rfd1 {[%clk 0:02:11.9]} 17... h6 {[%clk 0:01:08.9]} 18. Bxf6
{[%clk 0:02:11.8]} 18... Qxf6 {[%clk 0:01:09.8]} 19. Nd5 {[%clk 0:02:07.9]}
19... Nxd5 {[%clk 0:01:09.3]} 20. Qxd5 {[%clk 0:02:08.8]} 20... Qe6 {[%clk
0:01:05.7]} 21. Nd2 {[%clk 0:01:58]} 21... Nd4 {[%clk 0:01:00.4]} 22. Qxe6
{[%clk 0:01:53.3]} 22... Bxe6 {[%clk 0:00:59]} 23. Re1 {[%clk 0:01:53.9]} 23...
Nb3 {[%clk 0:00:47.3]} 24. Nxb3 {[%clk 0:01:52.2]} 24... Bxb3 {[%clk 0:00:48.2]}
25. Bc6 {[%clk 0:01:49.5]} 25... Re6 {[%clk 0:00:45.7]} 26. Bb5 {[%clk
0:01:49.7]} 26... Rd6 {[%clk 0:00:43.8]} 27. Rc3 {[%clk 0:01:48.2]} 27... Be6
{[%clk 0:00:42.6]} 28. Rec1 {[%clk 0:01:48.5]} 28... f6 {[%clk 0:00:27.6]} 29.
f3 {[%clk 0:01:48.5]} 29... Kf7 {[%clk 0:00:27.3]} 30. Bc4 {[%clk 0:01:48]}
30... Rd4 {[%clk 0:00:25]} 31. Bb5 {[%clk 0:01:41.9]} 31... Rbd8 {[%clk
0:00:24.8]} 32. Kf2 {[%clk 0:01:42]} 32... h5 {[%clk 0:00:21.5]} 33. Bc6 {[%clk
0:01:40.5]} 33... R4d6 {[%clk 0:00:19.7]} 34. Bb5 {[%clk 0:01:41.2]} 34... Bd7
{[%clk 0:00:19.5]} 35. Bxd7 {[%clk 0:01:40.1]} 35... R8xd7 {[%clk 0:00:19.5]}
36. b4 {[%clk 0:01:37.6]} 36... cxb4 {[%clk 0:00:12.7]} 37. axb4 {[%clk
0:01:38.5]} 37... axb4 {[%clk 0:00:13.2]} 38. Rb3 {[%clk 0:01:39]} 38... Rd4
{[%clk 0:00:12.8]} 39. Rc6 {[%clk 0:01:39.6]} 39... R7d6 {[%clk 0:00:06.4]} 40.
Rc7+ {[%clk 0:01:40.1]} 40... Rd7 {[%clk 0:00:06.7]} 41. Rc6 {[%clk 0:01:39.5]}
41... R7d6 {[%clk 0:00:06.2]} 42. Rc8 {[%clk 0:01:40.2]} 42... Rd8 {[%clk
0:00:06.2]} 43. Rc1 {[%clk 0:01:38.4]} 43... R8d5 {[%clk 0:00:04.8]} 44. Ke3
{[%clk 0:01:38.5]} 44... Ke6 {[%clk 0:00:02.8]} 45. Rc7 {[%clk 0:01:38.3]} 45...
Rd7 {[%clk 0:00:02.9]} 46. Rc8 {[%clk 0:01:37]} 46... Rd8 {[%clk 0:00:03.1]} 47.
Rxd8 {[%clk 0:01:35.9]} 47... Rxd8 {[%clk 0:00:02.7]} 48. Rxb4 {[%clk
0:01:36.8]} 48... Rb8 {[%clk 0:00:03.4]} 49. g4 {[%clk 0:01:30.2]} 49... hxg4
{[%clk 0:00:02.9]} 50. Rxg4 {[%clk 0:01:23.3]} 50... Kf7 {[%clk 0:00:02.8]} 51.
Kd2 {[%clk 0:01:22.7]} 51... b5 {[%clk 0:00:03.2]} 52. Kc3 {[%clk 0:01:23.3]}
52... g6 {[%clk 0:00:03.5]} 53. d4 {[%clk 0:01:21.5]} 53... exd4+ {[%clk
0:00:03.1]} 54. Rxd4 {[%clk 0:01:21.4]} 54... g5 {[%clk 0:00:02.1]} 55. hxg5
{[%clk 0:01:16.5]} 55... fxg5 {[%clk 0:00:03]} 56. Rd6 {[%clk 0:01:16]} 56...
Rb7 {[%clk 0:00:02.2]} 57. Rc6 {[%clk 0:01:14.8]} 57... b4+ {[%clk 0:00:02.3]}
58. Kb3 {[%clk 0:01:15]} 58... Re7 {[%clk 0:00:02.6]} 59. Rc2 {[%clk 0:01:12.5]}
59... Rb7 {[%clk 0:00:03.2]} 60. Rc6 {[%clk 0:01:09.3]} 60... Re7 {[%clk
0:00:03.4]} 61. Rc2 {[%clk 0:01:05.5]} 61... Rb7 {[%clk 0:00:03.4]} 62. Rc4
{[%clk 0:01:01.4]} 62... Re7 {[%clk 0:00:03.3]} 63. e4 {[%clk 0:01:02.1]} 63...
Kf6 {[%clk 0:00:03.4]} 64. Rc5 {[%clk 0:00:58.9]} 64... g4 {[%clk 0:00:02.9]}
65. Rc6+ {[%clk 0:00:47]} 65... Kg5 {[%clk 0:00:03.4]} 66. Rc5+ {[%clk
0:00:47.6]} 66... Kg6 {[%clk 0:00:03.9]} 67. Rc6+ {[%clk 0:00:44.8]} 67... Kg5
{[%clk 0:00:04.1]} 68. Rc5+ {[%clk 0:00:42.6]} 68... Kg6 {[%clk 0:00:04.5]} 69.
fxg4 {[%clk 0:00:41.9]} 69... Rxe4 {[%clk 0:00:04.4]} 70. g5 {[%clk 0:00:42.8]}
70... Rg4 {[%clk 0:00:04.4]} 71. Rc8 {[%clk 0:00:43.3]} 71... Kxg5 {[%clk
0:00:04.2]} 72. Rc1 {[%clk 0:00:43.8]} 72... Kf5 {[%clk 0:00:04.2]} 73. Re1
{[%clk 0:00:44]} 73... Rf4 {[%clk 0:00:04.1]} 74. Re2 {[%clk 0:00:44.2]} 74...
Re4 {[%clk 0:00:04.6]} 75. Rxe4 {[%clk 0:00:44.6]} 75... Kxe4 {[%clk 0:00:05.5]}
76. Kxb4 {[%clk 0:00:45.5]} 1/2-1/2

[Event "Early-Titled-Tuesday-Blitz-May-14-2024"]
[Site "Chess.com"]
[Date "2024.05.14"]
[Round "2"]
[White "Arimin1329"]
[Black "The_Machine04"]
[Result "0-1"]
[WhiteElo "2379"]
[BlackElo "2664"]
[TimeControl "180+1"]
[EndTime "8:19:06 PDT"]
[Termination "The_Machine04 won on time"]

1. Nf3 {[%clk 0:03:00.9]} 1... d6 {[%clk 0:03:00.9]} 2. g3 {[%clk 0:03:01.8]}
2... Nf6 {[%clk 0:03:00.6]} 3. d4 {[%clk 0:03:02.1]} 3... Nbd7 {[%clk
0:03:01.5]} 4. Bg2 {[%clk 0:03:02.3]} 4... e5 {[%clk 0:03:02.1]} 5. O-O {[%clk
0:03:02.4]} 5... e4 {[%clk 0:03:02.7]} 6. Ne1 {[%clk 0:03:01.9]} 6... d5 {[%clk
0:03:03.6]} 7. c4 {[%clk 0:03:01.8]} 7... c6 {[%clk 0:03:04.5]} 8. Nc3 {[%clk
0:03:01.7]} 8... Bd6 {[%clk 0:03:04.9]} 9. Bg5 {[%clk 0:03:00.7]} 9... h6 {[%clk
0:03:04.8]} 10. Bxf6 {[%clk 0:03:00.1]} 10... Nxf6 {[%clk 0:03:05.7]} 11. cxd5
{[%clk 0:02:58.6]} 11... cxd5 {[%clk 0:03:06.6]} 12. f3 {[%clk 0:02:58.4]} 12...
exf3 {[%clk 0:03:03.8]} 13. exf3 {[%clk 0:02:58.8]} 13... O-O {[%clk 0:03:03.4]}
14. f4 {[%clk 0:02:56.4]} 14... Bc7 {[%clk 0:03:02.1]} 15. Qb3 {[%clk
0:02:54.2]} 15... Bb6 {[%clk 0:03:02.4]} 16. Nf3 {[%clk 0:02:49.9]} 16... Re8
{[%clk 0:02:57.3]} 17. Rad1 {[%clk 0:02:42.5]} 17... Bf5 {[%clk 0:02:54.7]} 18.
Ne5 {[%clk 0:02:34.1]} 18... Be6 {[%clk 0:02:42.5]} 19. f5 {[%clk 0:02:30.8]}
19... Bc8 {[%clk 0:02:42.4]} 20. Kh1 {[%clk 0:01:48.2]} 20... Bxd4 {[%clk
0:02:16.9]} 21. Rxd4 {[%clk 0:01:49.1]} 21... Rxe5 {[%clk 0:02:15.6]} 22. Nxd5
{[%clk 0:01:49.6]} 22... Nxd5 {[%clk 0:02:04]} 23. Rxd5 {[%clk 0:01:49.9]} 23...
Rxd5 {[%clk 0:02:03.7]} 24. Bxd5 {[%clk 0:01:50.1]} 24... Qf6 {[%clk 0:01:56.6]}
25. g4 {[%clk 0:01:28.5]} 25... Rb8 {[%clk 0:01:56.1]} 26. Qg3 {[%clk
0:01:20.6]} 26... Ra8 {[%clk 0:01:55.5]} 27. Qc7 {[%clk 0:01:16.7]} 27... Kh7
{[%clk 0:00:51.9]} 28. Bxf7 {[%clk 0:01:08.1]} 28... Qc6+ {[%clk 0:00:45]} 29.
Qxc6 {[%clk 0:01:08.3]} 29... bxc6 {[%clk 0:00:45.9]} 30. Bg6+ {[%clk
0:01:07.8]} 30... Kg8 {[%clk 0:00:46.2]} 31. Re1 {[%clk 0:01:00.3]} 31... Ba6
{[%clk 0:00:46.3]} 32. Kg2 {[%clk 0:00:56.1]} 32... Rb8 {[%clk 0:00:45.7]} 33.
b3 {[%clk 0:00:54.7]} 33... c5 {[%clk 0:00:46.1]} 34. Re7 {[%clk 0:00:49.9]}
34... c4 {[%clk 0:00:42.7]} 35. bxc4 {[%clk 0:00:35.2]} 35... Bxc4 {[%clk
0:00:43.6]} 36. a3 {[%clk 0:00:33.4]} 36... a6 {[%clk 0:00:40.2]} 37. Kf3 {[%clk
0:00:25.9]} 37... Kf8 {[%clk 0:00:33.1]} 38. Rc7 {[%clk 0:00:24.4]} 38... Bb5
{[%clk 0:00:15.7]} 39. Kf4 {[%clk 0:00:20.4]} 39... Rd8 {[%clk 0:00:12.2]} 40.
Ke5 {[%clk 0:00:18.5]} 40... Rd2 {[%clk 0:00:10.3]} 41. h4 {[%clk 0:00:15.5]}
41... Re2+ {[%clk 0:00:10.1]} 42. Kd6 {[%clk 0:00:12.5]} 42... Rd2+ {[%clk
0:00:10.6]} 43. Kc5 {[%clk 0:00:12.8]} 43... Rc2+ {[%clk 0:00:10.9]} 44. Kb6
{[%clk 0:00:13.1]} 44... Rxc7 {[%clk 0:00:03.9]} 45. Kxc7 {[%clk 0:00:12.9]}
45... Ke7 {[%clk 0:00:04.8]} 46. Kb6 {[%clk 0:00:10.3]} 46... Kf6 {[%clk
0:00:04.3]} 47. Kc5 {[%clk 0:00:06.9]} 47... Be2 {[%clk 0:00:04.3]} 48. Bh5
{[%clk 0:00:05.8]} 48... Ke5 {[%clk 0:00:03.8]} 49. a4 {[%clk 0:00:06.1]} 49...
Kf4 {[%clk 0:00:03.7]} 50. Bg6 {[%clk 0:00:01.6]} 50... Kxg4 {[%clk 0:00:02.9]}
51. Kb6 {[%clk 0:00:02.2]} 51... Kxh4 {[%clk 0:00:02.7]} 52. Be8 {[%clk
0:00:02.2]} 52... Kg5 {[%clk 0:00:02.7]} 53. Bd7 {[%clk 0:00:02.4]} 53... h5
{[%clk 0:00:03]} 54. Bc8 {[%clk 0:00:03]} 54... h4 {[%clk 0:00:03.6]} 55. Bd7
{[%clk 0:00:02.1]} 55... Kf4 {[%clk 0:00:02.7]} 0-1

[Event "Early-Titled-Tuesday-Blitz-May-14-2024"]
[Site "Chess.com"]
[Date "2024.05.14"]
[Round "2"]
[White "maximnovik"]
[Black "EdmundPlayer"]
[Result "1-0"]
[WhiteElo "2520"]
[BlackElo "2270"]
[TimeControl "180+1"]
[EndTime "8:19:06 PDT"]
[Termination "maximnovik won by checkmate"]

1. e4 {[%clk 0:02:58.8]} 1... e6 {[%clk 0:02:56.5]} 2. d4 {[%clk 0:02:58.6]}
2... d5 {[%clk 0:02:56.3]} 3. e5 {[%clk 0:02:59.1]} 3... Qd7 {[%clk 0:02:46.3]}
4. Nf3 {[%clk 0:02:55.4]} 4... b6 {[%clk 0:02:40.2]} 5. c3 {[%clk 0:02:55]} 5...
Ba6 {[%clk 0:02:33.6]} 6. Bxa6 {[%clk 0:02:55]} 6... Nxa6 {[%clk 0:02:34.5]} 7.
O-O {[%clk 0:02:55.3]} 7... c5 {[%clk 0:02:31.4]} 8. Re1 {[%clk 0:02:49.1]} 8...
Nb8 {[%clk 0:02:28.3]} 9. Nbd2 {[%clk 0:02:33.7]} 9... Nc6 {[%clk 0:02:28.1]}
10. Nf1 {[%clk 0:02:34]} 10... Nge7 {[%clk 0:02:25.3]} 11. Ng3 {[%clk
0:02:33.6]} 11... h5 {[%clk 0:02:21.4]} 12. h4 {[%clk 0:02:31.3]} 12... Ng6
{[%clk 0:02:16.1]} 13. Bg5 {[%clk 0:02:30.2]} 13... Be7 {[%clk 0:02:13]} 14. Qd2
{[%clk 0:02:15.5]} 14... Rc8 {[%clk 0:02:03.2]} 15. a3 {[%clk 0:02:14.7]} 15...
Na5 {[%clk 0:02:02.2]} 16. Rad1 {[%clk 0:02:03.4]} 16... Nc4 {[%clk 0:01:57.3]}
17. Qe2 {[%clk 0:02:01.5]} 17... Qb5 {[%clk 0:01:49.7]} 18. Nd2 {[%clk
0:01:47.4]} 18... Qxb2 {[%clk 0:01:32.7]} 19. Nxh5 {[%clk 0:01:41.7]} 19... Bxg5
{[%clk 0:01:01.8]} 20. hxg5 {[%clk 0:01:40]} 20... Kf8 {[%clk 0:01:01.5]} 21.
Ng3 {[%clk 0:01:18.2]} 21... Qxc3 {[%clk 0:00:44.3]} 22. Nxc4 {[%clk 0:01:15.5]}
22... Qxc4 {[%clk 0:00:43.8]} 23. Qxc4 {[%clk 0:01:11.5]} 23... dxc4 {[%clk
0:00:44.7]} 24. d5 {[%clk 0:01:11.8]} 24... exd5 {[%clk 0:00:43.3]} 25. Rxd5
{[%clk 0:01:11.5]} 25... Ne7 {[%clk 0:00:40.4]} 26. Rd7 {[%clk 0:01:10.4]} 26...
b5 {[%clk 0:00:18.9]} 27. Ne4 {[%clk 0:01:03.2]} 27... b4 {[%clk 0:00:12]} 28.
Nd6 {[%clk 0:01:00.5]} 28... Rb8 {[%clk 0:00:09.9]} 29. axb4 {[%clk 0:00:59.4]}
29... cxb4 {[%clk 0:00:08.4]} 30. Nxc4 {[%clk 0:00:59.5]} 30... Nc6 {[%clk
0:00:07.2]} 31. Rc7 {[%clk 0:00:51.8]} 31... Nd4 {[%clk 0:00:05.3]} 32. Re4
{[%clk 0:00:40]} 32... Ne6 {[%clk 0:00:03.9]} 33. Rxa7 {[%clk 0:00:37.6]} 33...
Nxg5 {[%clk 0:00:01.5]} 34. Rg4 {[%clk 0:00:30.3]} 34... Ne6 {[%clk 0:00:01.8]}
35. Nd6 {[%clk 0:00:30.4]} 35... b3 {[%clk 0:00:01.9]} 36. Rxf7+ {[%clk
0:00:24.1]} 36... Kg8 {[%clk 0:00:02.3]} 37. Rb7 {[%clk 0:00:24.1]} 37... Rxb7
{[%clk 0:00:01.4]} 38. Nxb7 {[%clk 0:00:24.3]} 38... b2 {[%clk 0:00:01.2]} 39.
Rb4 {[%clk 0:00:24]} 39... Rh5 {[%clk 0:00:02.1]} 40. Rxb2 {[%clk 0:00:22.1]}
40... Rxe5 {[%clk 0:00:02.3]} 41. g3 {[%clk 0:00:21.6]} 41... Kf7 {[%clk
0:00:03.2]} 42. Nd6+ {[%clk 0:00:20.2]} 42... Ke7 {[%clk 0:00:02.8]} 43. Nc4
{[%clk 0:00:19.9]} 43... Re1+ {[%clk 0:00:03.5]} 44. Kg2 {[%clk 0:00:20.2]}
44... Rc1 {[%clk 0:00:04.4]} 45. Ne3 {[%clk 0:00:20.4]} 45... Kf6 {[%clk
0:00:05]} 46. Rb6 {[%clk 0:00:20.3]} 46... Ra1 {[%clk 0:00:05.3]} 47. Nd5+
{[%clk 0:00:20.4]} 47... Ke5 {[%clk 0:00:05.4]} 48. Ne3 {[%clk 0:00:20.4]} 48...
Nd4 {[%clk 0:00:05.7]} 49. Rg6 {[%clk 0:00:18.8]} 49... Ne6 {[%clk 0:00:04.9]}
50. f4+ {[%clk 0:00:17]} 50... Kd6 {[%clk 0:00:04.9]} 51. f5 {[%clk 0:00:17.2]}
51... Ra2+ {[%clk 0:00:05.8]} 52. Kf3 {[%clk 0:00:17.4]} 52... Ra7 {[%clk
0:00:05.1]} 53. Rxe6+ {[%clk 0:00:17.8]} 53... Kc5 {[%clk 0:00:05.8]} 54. g4
{[%clk 0:00:18.7]} 54... Kd4 {[%clk 0:00:06.7]} 55. Re4+ {[%clk 0:00:18.7]}
55... Kd3 {[%clk 0:00:06.3]} 56. g5 {[%clk 0:00:18.9]} 56... Ra1 {[%clk
0:00:07.2]} 57. Kf4 {[%clk 0:00:18.3]} 57... Rg1 {[%clk 0:00:08.1]} 58. Ng4
{[%clk 0:00:18.4]} 58... Rxg4+ {[%clk 0:00:07.8]} 59. Kxg4 {[%clk 0:00:18.5]}
59... Kxe4 {[%clk 0:00:08.7]} 60. f6 {[%clk 0:00:18.6]} 60... Ke5 {[%clk
0:00:09.2]} 61. fxg7 {[%clk 0:00:18.8]} 61... Ke6 {[%clk 0:00:10.1]} 62. g8=Q+
{[%clk 0:00:18.7]} 62... Ke7 {[%clk 0:00:10.4]} 63. g6 {[%clk 0:00:19.6]} 63...
Kf6 {[%clk 0:00:10.5]} 64. g7 {[%clk 0:00:20.3]} 64... Kg6 {[%clk 0:00:10.9]}
65. Qf8 {[%clk 0:00:20.4]} 65... Kh6 {[%clk 0:00:11.8]} 66. g8=Q# {[%clk
0:00:19.8]} 1-0